bitfinex-derivatives/quotes_ETHF0:USTF0_20260119
["timestamp","ask_amount","ask_price","bid_price","bid_amount"]
[1768851646653,1.741,3218.4,3217.3,0.15549]
[1768851646852,0.86763197,3218.3,3217.3,0.15549]
[1768851647051,0.86763197,3218.2,3217.3,0.15549]
[1768851647249,0.86763197,3218.1,3217.3,0.15549]
[1768851647451,1.741,3218.4,3217.3,0.15549]
[1768851647643,0.86760922,3218.3,3217.3,0.15549]
[1768851647847,0.86760922,3218.2,3217.3,0.15549]
[1768851648050,1.741,3218.4,3217.3,0.15549]
[1768851648051,0.86760922,3218.1,3217.3,0.15549]
[1768851648247,1.741,3218.4,3217.3,0.29319649]
[1768851648453,0.86759767,3218.3,3217.3,0.29319649]
[1768851648654,0.86759767,3218.2,3217.3,0.29319649]
[1768851648955,0.86759767,3218.1,3217.3,0.29319649]
[1768851649153,1.741,3218.4,3217.3,0.29319649]
[1768851649354,0.86759033,3218.3,3217.3,0.29319649]
[1768851649554,0.86759033,3218.2,3217.3,0.29319649]
[1768851649750,0.86759033,3218.1,3217.3,0.29319649]
[1768851649951,1.741,3218.4,3217.3,0.29319649]
[1768851650151,0.86759023,3218.3,3217.3,0.29319649]
[1768851650353,0.86759023,3218.2,3217.3,0.29319649]
[1768851650659,1.741,3218.4,3217.3,0.29319649]
[1768851650860,0.86760136,3218.3,3217.3,0.29319649]
[1768851651053,0.86760136,3218.2,3217.3,0.29319649]
[1768851651253,1.741,3218.4,3217.3,0.29319649]
[1768851651453,0.86760697,3218.3,3217.3,0.29319649]
[1768851651650,0.86760697,3218.2,3217.3,0.29319649]
[1768851651959,1.741,3218.4,3217.3,0.29319649]
[1768851652153,0.8676023,3218.3,3217.3,0.29319649]
[1768851652352,0.8676023,3218.2,3217.3,0.29319649]
[1768851652555,1.741,3218.4,3217.4,0.13770649]
[1768851652757,0.86761828,3218.3,3217.4,0.13770649]
[1768851653068,0.86761828,3218.2,3217.4,0.13770649]
[1768851653250,1.742,3218.5,3217.4,0.13770649]
[1768851653453,0.86739894,3218.4,3217.4,0.13770649]
[1768851653660,0.86739894,3218.3,3217.4,0.13770649]
[1768851653859,0.86739894,3218.2,3217.4,0.13770649]
[1768851654061,1.742,3218.5,3217.4,0.13770649]
[1768851654255,0.86743471,3218.4,3217.4,0.13770649]
[1768851654455,0.86743471,3218.3,3217.4,0.13770649]
[1768851654662,0.86743471,3218.2,3217.4,0.13770649]
[1768851654862,1.742,3218.5,3217.4,0.13770649]
[1768851655063,0.86743433,3218.4,3217.4,0.13770649]
[1768851655262,1.742,3218.5,3217.4,0.13770649]
[1768851655263,0.86743433,3218.3,3217.4,0.13770649]
[1768851655455,0.86743433,3218.2,3217.4,0.13770649]
[1768851655655,1.742,3218.5,3217.4,0.13770649]
[1768851655859,0.86747924,3218.4,3217.4,0.13770649]
[1768851656057,0.86747924,3218.3,3217.4,0.13770649]
[1768851656257,1.742,3218.5,3217.4,0.13770649]
[1768851656467,0.86745635,3218.4,3217.4,0.13770649]
[1768851656766,0.86745635,3218.3,3217.4,0.13770649]
[1768851656957,1.742,3218.5,3217.4,0.13770649]
[1768851657157,0.86745632,3218.4,3217.4,0.13770649]
[1768851657360,1.742,3218.5,3217.4,0.13770649]
[1768851657361,0.86745632,3218.3,3217.4,0.13770649]
[1768851657560,1.742,3218.5,3217.4,0.13770649]
[1768851657858,0.8674645,3218.4,3217.4,0.13770649]
[1768851658059,0.8674645,3218.3,3217.4,0.13770649]
[1768851658260,1.742,3218.5,3217.4,0.13770649]
[1768851658461,0.86747351,3218.4,3217.4,0.13770649]
[1768851658664,0.86747351,3218.3,3217.4,0.13770649]
[1768851658866,1.742,3218.5,3217.4,0.13770649]
[1768851659063,0.86747351,3218.4,3217.4,0.13770649]
[1768851659269,0.86747351,3218.3,3217.4,0.13770649]
[1768851659466,1.742,3218.5,3217.4,0.13770649]
[1768851659666,0.86748298,3218.4,3217.4,0.13770649]
[1768851659864,0.86748298,3218.3,3217.4,0.13770649]
[1768851660063,1.742,3218.5,3217.4,0.13770649]
[1768851660064,0.86748298,3218.2,3217.4,0.13770649]
[1768851660263,1.742,3218.5,3217.4,0.13770649]
[1768851660464,0.86748182,3218.4,3217.4,0.13770649]
[1768851660765,0.86748182,3218.3,3217.4,0.13770649]
[1768851660966,0.86748182,3218.2,3217.4,0.13770649]
[1768851661169,1.742,3218.5,3217.4,0.13770649]
[1768851661371,0.86749568,3218.4,3217.4,0.13770649]
[1768851661670,0.86749568,3218.3,3217.4,0.13770649]
[1768851661867,0.86749568,3218.2,3217.4,0.13770649]
[1768851662066,1.742,3218.5,3217.4,0.13770649]
[1768851662271,0.86749574,3218.4,3217.4,0.13770649]
[1768851662571,0.86749574,3218.3,3217.4,0.13770649]
[1768851662772,3.41225492,3218.8,3217.4,0.13770649]
[1768851662970,0.86748476,3218.7,3217.4,0.13770649]
[1768851663161,0.86748476,3218.6,3217.4,0.13770649]
[1768851663362,0.86748476,3218.5,3217.4,0.13770649]
[1768851663671,1.741,3218.8,3217.5,0.13661925]
[1768851663973,0.86747153,3218.7,3217.5,0.13661925]
[1768851664273,0.86747153,3218.6,3217.5,0.13661925]
[1768851664462,0.86747153,3218.5,3217.5,0.13661925]
[1768851664663,1.741,3218.8,3217.5,0.13661925]
[1768851664873,0.86737695,3218.7,3217.6,0.13661925]
[1768851665169,0.86737695,3218.6,3217.6,0.13661925]
[1768851665471,0.86737695,3218.5,3217.6,0.13661925]
[1768851665672,1.741,3218.8,3217.6,0.13661925]
[1768851665971,0.86727902,3218.7,3217.6,0.13661925]
[1768851666166,0.86727902,3218.6,3217.6,0.13661925]
[1768851666367,0.86727902,3218.5,3217.6,0.13661925]
[1768851666567,1.741,3218.8,3217.6,0.13661925]
[1768851666767,0.86719287,3218.7,3217.6,0.13661925]
[1768851666964,0.86719287,3218.6,3217.6,0.13661925]
[1768851667164,1.741,3218.8,3217.6,0.13661925]
[1768851667372,0.86710888,3218.7,3217.6,0.13661925]
[1768851667582,0.86710888,3218.6,3217.6,0.13661925]
[1768851667766,1.741,3218.8,3217.6,0.13661925]
[1768851667968,0.86710828,3218.7,3217.6,0.13661925]
[1768851668167,0.86710828,3218.6,3217.6,0.13661925]
[1768851668474,1.741,3218.8,3217.6,0.13661925]
[1768851668666,0.8670345,3218.7,3217.6,0.13661925]
[1768851668869,0.8670345,3218.6,3217.7,0.13661925]
[1768851669071,1.741,3218.8,3217.7,0.13661925]
[1768851669271,1.82664492,3219.3,3217.8,0.29207925]
[1768851669577,0.86689625,3219.2,3217.9,0.13661925]
[1768851669766,0.86689625,3219.1,3217.9,0.13661925]
[1768851669967,0.86689625,3219.0,3217.9,0.13661925]
[1768851670277,0.86689625,3218.9,3217.9,0.13661925]
[1768851670469,0.86689625,3218.8,3217.9,0.13661925]
[1768851670669,1.741,3219.3,3217.9,0.13661925]
[1768851670868,1.28845823,3218.9,3217.9,0.13661925]
[1768851671067,0.86666632,3218.8,3217.9,0.13661925]
[1768851671268,1.28845823,3218.9,3217.9,0.13661925]
[1768851672269,1.28845823,3218.7,3217.9,0.13661925]
[1768851680183,1.28845823,3218.5,3217.8,0.15546]
[1768851680681,1.28845823,3218.7,3217.8,0.15546]
[1768851689899,1.82664492,3219.4,3217.8,0.28615896]
[1768851690098,1.28845823,3218.9,3217.8,0.28615896]
[1768851690402,0.8636358,3218.8,3217.9,0.13069896]
[1768851690591,1.28845823,3218.9,3217.9,0.13069896]
[1768851690787,0.8636513,3218.8,3217.9,0.13069896]
[1768851690990,1.28845823,3218.9,3217.9,0.13069896]
[1768851691190,0.8636513,3218.8,3217.9,0.13069896]
[1768851691401,1.28845823,3218.9,3217.9,0.13069896]
[1768851691699,0.86381045,3218.8,3217.9,0.13069896]
[1768851692001,1.28845823,3218.9,3217.9,0.13069896]
[1768851692200,0.86380718,3218.8,3217.9,0.13069896]
[1768851692392,1.28845823,3218.9,3217.9,0.13069896]
[1768851692594,0.86398903,3218.8,3217.9,0.13069896]
[1768851692794,1.28845823,3218.9,3217.9,0.13069896]
[1768851693003,0.86398467,3218.8,3217.9,0.13069896]
[1768851693305,1.28845823,3218.9,3217.9,0.13069896]
[1768851693603,0.86419536,3218.8,3217.9,0.13069896]
[1768851693902,1.28845823,3218.9,3217.9,0.13069896]
[1768851694101,0.86419536,3218.8,3217.9,0.13069896]
[1768851694303,1.28845823,3218.9,3217.9,0.13069896]
[1768851694507,0.86426716,3218.8,3217.9,0.13069896]
[1768851694704,1.28845823,3218.9,3217.9,0.13069896]
[1768851694905,0.86426719,3218.8,3217.9,0.13069896]
[1768851695097,1.28845823,3218.9,3217.9,0.13069896]
[1768851695296,0.86427532,3218.8,3217.9,0.13069896]
[1768851695497,3.11510315,3219.4,3218.0,0.13069896]
[1768851695695,1.28845823,3219.2,3218.0,0.13069896]
[1768851695997,0.86429691,3219.1,3218.0,0.13069896]
[1768851696194,0.86429691,3219.0,3218.0,0.13069896]
[1768851696391,1.28845823,3219.2,3218.0,0.13069896]
[1768851696595,1.28845823,3219.0,3218.0,0.13069896]
[1768851697607,0.15539,3219.4,3218.0,0.13069896]
[1768851697805,1.28845823,3219.0,3218.0,0.13069896]
[1768851706008,1.28845823,3219.0,3218.0,0.28615896]
[1768851706214,1.28845823,3219.2,3218.1,0.14249614]
[1768851706402,0.86390712,3219.1,3218.1,0.14249614]
[1768851706600,1.28845823,3219.2,3218.1,0.14249614]
[1768851706819,0.86389637,3219.1,3218.1,0.14249614]
[1768851707110,1.28845823,3219.2,3218.1,0.14249614]
[1768851707312,0.86384552,3219.1,3218.1,0.14249614]
[1768851707512,1.28845823,3219.2,3218.1,0.14249614]
[1768851707706,0.86384296,3219.1,3218.1,0.29794614]
[1768851707902,1.28845823,3219.2,3218.1,0.29794614]
[1768851714014,1.28845823,3219.0,3218.1,0.29794614]
[1768851718521,1.28845823,3219.0,3218.1,0.15545]
[1768851722921,1.28845823,3219.2,3218.2,0.15545]
[1768851728523,1.28845823,3219.2,3218.2,0.29493694]
[1768851729327,1.28845823,3219.2,3218.3,0.13948694]
[1768851730428,1.28845823,3219.2,3218.2,0.15545]
[1768851732930,1.28832753,3219.5,3218.2,0.15545]
[1768851733118,0.86418479,3219.4,3218.2,0.15545]
[1768851733318,0.86418479,3219.3,3218.2,0.15545]
[1768851733527,0.86418479,3219.2,3218.2,0.15545]
[1768851733728,1.28832753,3219.5,3218.2,0.15545]
[1768851733928,0.86421035,3219.4,3218.2,0.15545]
[1768851734130,0.86421035,3219.3,3218.2,0.15545]
[1768851734322,0.86421035,3219.2,3218.2,0.15545]
[1768851734526,1.28832753,3219.5,3218.2,0.15545]
[1768851734825,0.86424743,3219.4,3218.2,0.15545]
[1768851735026,0.86424743,3219.3,3218.2,0.15545]
[1768851735226,0.86424743,3219.2,3218.2,0.15545]
[1768851735427,1.28832753,3219.5,3218.2,0.15545]
[1768851735629,0.86426341,3219.4,3218.2,0.15545]
[1768851735925,0.86426341,3219.3,3218.2,0.15545]
[1768851736125,0.86426341,3219.2,3218.2,0.15545]
[1768851736429,1.28832753,3219.5,3218.2,0.15545]
[1768851736633,0.86428912,3219.4,3218.2,0.15545]
[1768851736831,0.86428912,3219.3,3218.2,0.15545]
[1768851737022,0.86428912,3219.2,3218.2,0.15545]
[1768851737318,1.28832753,3219.5,3218.2,0.15545]
[1768851737523,0.86430585,3219.4,3218.2,0.15545]
[1768851737722,0.86430585,3219.3,3218.2,0.15545]
[1768851737932,0.86430585,3219.2,3218.2,0.15545]
[1768851738130,1.28832753,3219.5,3218.2,0.15545]
[1768851738329,0.86430224,3219.4,3218.2,0.15545]
[1768851738527,0.86430224,3219.3,3218.2,0.15545]
[1768851738727,0.86430224,3219.2,3218.2,0.15545]
[1768851738927,1.28832753,3219.5,3218.2,0.15545]
[1768851739129,0.86429353,3219.4,3218.2,0.15545]
[1768851739428,0.86429353,3219.3,3218.2,0.15545]
[1768851739628,0.86429353,3219.2,3218.2,0.15545]
[1768851739826,1.28832753,3219.5,3218.2,0.15545]
[1768851740026,0.86428395,3219.4,3218.2,0.15545]
[1768851740232,0.86428395,3219.3,3218.2,0.15545]
[1768851740527,0.86428395,3219.2,3218.2,0.15545]
[1768851740833,1.28832753,3219.5,3218.2,0.15545]
[1768851741026,0.86427689,3219.4,3218.2,0.15545]
[1768851741229,0.86427689,3219.3,3218.2,0.15545]
[1768851741526,0.86427689,3219.2,3218.2,0.15545]
[1768851741722,1.28832753,3219.5,3218.2,0.15545]
[1768851741923,0.86427219,3219.4,3218.2,0.15545]
[1768851742219,1.28832753,3219.5,3218.2,0.15545]
[1768851742220,0.86427219,3219.3,3218.2,0.15545]
[1768851742424,0.86427219,3219.2,3218.2,0.15545]
[1768851742635,1.28832753,3219.5,3218.2,0.15545]
[1768851742826,0.86426951,3219.4,3218.2,0.15545]
[1768851743027,0.86426951,3219.3,3218.2,0.15545]
[1768851743228,0.86426951,3219.2,3218.2,0.15545]
[1768851743431,1.28832753,3219.5,3218.2,0.15545]
[1768851743735,0.86295351,3219.4,3218.2,0.15545]
[1768851743927,0.86295351,3219.3,3218.2,0.15545]
[1768851744127,0.86295351,3219.2,3218.2,0.15545]
[1768851744428,1.28832753,3219.5,3218.2,0.15545]
[1768851744735,0.86295687,3219.4,3218.2,0.15545]
[1768851744924,0.86295687,3219.3,3218.2,0.15545]
[1768851745128,0.86295687,3219.2,3218.2,0.15545]
[1768851745327,1.28832753,3219.5,3218.2,0.15545]
[1768851745527,0.86296237,3219.4,3218.2,0.15545]
[1768851745727,0.86296237,3219.3,3218.2,0.15545]
[1768851745934,0.86296237,3219.2,3218.2,0.15545]
[1768851746136,1.28832753,3219.5,3218.2,0.15545]
[1768851746435,0.86296842,3219.4,3218.2,0.15545]
[1768851746627,0.86296842,3219.3,3218.2,0.15545]
[1768851746823,0.86296842,3219.2,3218.2,0.1366021]
[1768851747028,0.00366812,3219.6,3218.4,0.2920321]
[1768851747230,0.86292302,3219.5,3218.5,0.1366021]
[1768851747537,0.86292302,3219.4,3218.5,0.1366021]
[1768851747728,0.00366812,3219.6,3218.5,0.1366021]
[1768851747928,0.86280707,3219.5,3218.5,0.1366021]
[1768851748136,0.86280707,3219.4,3218.5,0.1366021]
[1768851748338,0.00366812,3219.6,3218.5,0.1366021]
[1768851748536,0.86272733,3219.5,3218.5,0.1366021]
[1768851748736,0.86272733,3219.4,3218.5,0.1366021]
[1768851748929,0.00366812,3219.6,3218.5,0.1366021]
[1768851749131,0.86272284,3219.5,3218.5,0.1366021]
[1768851749430,0.00366812,3219.6,3218.5,0.1366021]
[1768851749629,0.86266139,3219.5,3218.5,0.1366021]
[1768851749837,0.00366812,3219.6,3218.5,0.1366021]
[1768851750035,0.86266141,3219.5,3218.5,0.1366021]
[1768851750335,0.00366812,3219.6,3218.5,0.1366021]
[1768851750535,0.86260856,3219.5,3218.5,0.1366021]
[1768851750730,0.00366812,3219.6,3218.5,0.1366021]
[1768851750937,0.86260841,3219.5,3218.5,0.1366021]
[1768851751130,0.00366812,3219.6,3218.5,0.1366021]
[1768851751332,0.86260841,3219.5,3218.5,0.1366021]
[1768851751626,0.00366812,3219.6,3218.5,0.1366021]
[1768851751829,0.86257401,3219.5,3218.5,0.1366021]
[1768851752028,0.00366812,3219.6,3218.5,0.1366021]
[1768851752228,0.86257401,3219.5,3218.5,0.1366021]
[1768851752437,0.00366812,3219.6,3218.5,0.1366021]
[1768851752636,0.86255045,3219.5,3218.5,0.1366021]
[1768851752841,0.00366812,3219.6,3218.5,0.1366021]
[1768851753038,0.86255045,3219.5,3218.6,0.1366021]
[1768851753238,0.00366812,3219.6,3218.6,0.1366021]
[1768851753439,0.86251929,3219.5,3218.6,0.1366021]
[1768851753640,0.00366812,3219.6,3218.6,0.1366021]
[1768851753946,0.8625193,3219.5,3218.6,0.1366021]
[1768851754137,0.00366812,3219.6,3218.6,0.1366021]
[1768851754331,0.8625193,3219.5,3218.6,0.1366021]
[1768851754534,0.00366812,3219.6,3218.6,0.1366021]
[1768851754837,0.86249916,3219.5,3218.6,0.1366021]
[1768851755038,0.00366812,3219.6,3218.6,0.1366021]
[1768851755237,0.86249916,3219.5,3218.6,0.1366021]
[1768851755441,0.00366812,3219.6,3218.6,0.1366021]
[1768851755646,0.86248573,3219.5,3218.6,0.1366021]
[1768851755839,0.00366812,3219.6,3218.6,0.1366021]
[1768851756038,0.86248573,3219.5,3218.6,0.1366021]
[1768851756238,0.00366812,3219.6,3218.6,0.1366021]
[1768851756439,0.86247881,3219.5,3218.6,0.1366021]
[1768851756739,0.00366812,3219.6,3218.6,0.1366021]
[1768851757038,0.86247881,3219.5,3218.6,0.1366021]
[1768851757238,0.00366812,3219.6,3218.6,0.1366021]
[1768851757439,0.8624798,3219.5,3218.6,0.1366021]
[1768851757639,0.00366812,3219.6,3218.6,0.1366021]
[1768851757946,0.8624798,3219.5,3218.6,0.1366021]
[1768851758147,0.00366812,3219.6,3218.6,0.1366021]
[1768851758350,0.8624798,3219.5,3218.6,0.1366021]
[1768851758646,0.00366812,3219.6,3218.6,0.1366021]
[1768851758848,0.86248814,3219.5,3218.6,0.1366021]
[1768851759049,0.00366812,3219.6,3218.6,0.1366021]
[1768851759245,0.86248814,3219.5,3218.6,0.1366021]
[1768851759450,0.00366812,3219.6,3218.6,0.1366021]
[1768851759636,0.86250258,3219.5,3218.6,0.1366021]
[1768851759840,0.00366812,3219.6,3218.6,0.1366021]
[1768851760047,0.86250108,3219.5,3218.6,0.1366021]
[1768851760242,0.00366812,3219.6,3218.6,0.1366021]
[1768851760442,0.86249199,3219.5,3218.6,0.1366021]
[1768851760644,0.00366812,3219.6,3218.6,0.1366021]
[1768851760949,0.86249172,3219.5,3218.6,0.1366021]
[1768851761149,0.00366812,3219.6,3218.6,0.1366021]
[1768851761449,0.86249172,3219.5,3218.6,0.1366021]
[1768851761650,0.00366812,3219.6,3218.6,0.1366021]
[1768851761951,0.86248667,3219.5,3218.6,0.1366021]
[1768851762141,0.00366812,3219.6,3218.6,0.1366021]
[1768851762337,0.86248667,3219.5,3218.6,0.1366021]
[1768851762546,0.00366812,3219.6,3218.6,0.1366021]
[1768851762746,0.86248539,3219.5,3218.6,0.1366021]
[1768851762947,0.00366812,3219.6,3218.6,0.1366021]
[1768851763149,0.86248539,3219.5,3218.6,0.1366021]
[1768851763447,0.00366812,3219.6,3218.6,0.1366021]
[1768851763747,0.86248819,3219.5,3218.6,0.1366021]
[1768851763947,0.00366812,3219.6,3218.6,0.1366021]
[1768851764246,0.86248819,3219.5,3218.6,0.1366021]
[1768851764445,0.00366812,3219.6,3218.6,0.1366021]
[1768851764646,0.86249513,3219.5,3218.6,0.1366021]
[1768851764847,0.00366812,3219.6,3218.6,0.1366021]
[1768851765048,0.86249513,3219.5,3218.6,0.1366021]
[1768851765249,0.00366812,3219.6,3218.6,0.1366021]
[1768851765450,0.8625063,3219.5,3218.6,0.1366021]
[1768851765751,0.00366812,3219.6,3218.6,0.1366021]
[1768851765946,0.8625063,3219.5,3218.6,0.1366021]
[1768851766147,0.00366812,3219.6,3218.6,0.1366021]
[1768851766351,0.8625063,3219.5,3218.6,0.1366021]
[1768851766556,0.00366812,3219.6,3218.6,0.1366021]
[1768851766756,0.86252198,3219.5,3218.6,0.1366021]
[1768851767057,0.00366812,3219.6,3218.6,0.1366021]
[1768851767254,0.86252198,3219.5,3218.6,0.1366021]
[1768851767458,0.00366812,3219.6,3218.6,0.1366021]
[1768851767659,0.86254268,3219.5,3218.6,0.1366021]
[1768851767862,0.00366812,3219.6,3218.6,0.1366021]
[1768851768054,0.8625666,3219.5,3218.6,0.1366021]
[1768851768350,0.00366812,3219.6,3218.6,0.1366021]
[1768851768550,0.86259622,3219.5,3218.6,0.1366021]
[1768851768748,0.00366812,3219.6,3218.6,0.1366021]
[1768851768948,0.86259622,3219.5,3218.6,0.1366021]
[1768851769149,0.00366812,3219.6,3218.6,0.1366021]
[1768851769447,0.86259622,3219.5,3218.6,0.1366021]
[1768851769649,0.00366812,3219.6,3218.6,0.1366021]
[1768851769849,0.86263068,3219.5,3218.6,0.1366021]
[1768851770049,0.00366812,3219.6,3218.6,0.1366021]
[1768851770245,0.86263053,3219.5,3218.6,0.1366021]
[1768851770450,0.00366812,3219.6,3218.6,0.1366021]
[1768851770651,0.86267044,3219.5,3218.6,0.1366021]
[1768851770852,0.00366812,3219.6,3218.6,0.1366021]
[1768851771053,0.86267056,3219.5,3218.6,0.1366021]
[1768851771255,0.00366812,3219.6,3218.6,0.1366021]
[1768851771453,0.86271703,3219.5,3218.6,0.1366021]
[1768851771751,0.86271703,3219.4,3218.6,0.1366021]
[1768851772067,0.00366812,3219.6,3218.6,0.1366021]
[1768851772253,0.86271051,3219.5,3218.6,0.1366021]
[1768851772457,0.00366812,3219.6,3218.6,0.1366021]
[1768851772764,0.86276409,3219.5,3218.6,0.1366021]
[1768851773064,0.00366812,3219.6,3218.6,0.1366021]
[1768851773266,0.86275076,3219.5,3218.6,0.1366021]
[1768851773458,0.00366812,3219.6,3218.6,0.1366021]
[1768851773653,0.86160993,3219.5,3218.6,0.1366021]
[1768851773858,0.00366812,3219.6,3218.6,0.1366021]
[1768851774058,0.86160993,3219.5,3218.6,0.1366021]
[1768851774359,0.00366812,3219.6,3218.6,0.1366021]
[1768851774558,0.86169159,3219.5,3218.6,0.1366021]
[1768851774758,0.00366812,3219.6,3218.6,0.1366021]
[1768851774960,0.86169159,3219.5,3218.6,0.1366021]
[1768851775159,0.00366812,3219.6,3218.6,0.1366021]
[1768851775360,0.86169159,3219.5,3218.6,0.1366021]
[1768851775559,0.86169159,3219.4,3218.6,0.1366021]
[1768851775759,0.00366812,3219.6,3218.6,0.1366021]
[1768851775960,0.86180062,3219.5,3218.6,0.1366021]
[1768851776157,0.86180062,3219.4,3218.6,0.1366021]
[1768851776361,0.00366812,3219.6,3218.6,0.1366021]
[1768851776564,0.8620074,3219.5,3218.6,0.1366021]
[1768851776771,0.8620074,3219.4,3218.6,0.1366021]
[1768851776964,0.00366812,3219.6,3218.6,0.1366021]
[1768851777165,0.8620074,3219.5,3218.6,0.1366021]
[1768851777365,0.8620074,3219.4,3218.6,0.1366021]
[1768851777566,0.00366812,3219.6,3218.6,0.1366021]
[1768851777767,0.86201748,3219.5,3218.6,0.1366021]
[1768851777968,0.86201748,3219.4,3218.6,0.1366021]
[1768851778166,0.00366812,3219.6,3218.6,0.1366021]
[1768851778361,0.86201748,3219.5,3218.6,0.1366021]
[1768851778667,0.86201748,3219.4,3218.6,0.1366021]
[1768851778866,0.00366812,3219.6,3218.6,0.1366021]
[1768851779068,0.86202034,3219.5,3218.6,0.1366021]
[1768851779268,0.86202034,3219.4,3218.6,0.1366021]
[1768851779474,0.00366812,3219.6,3218.6,0.1366021]
[1768851779774,0.86202205,3219.5,3218.6,0.1366021]
[1768851780072,0.86202205,3219.4,3218.6,0.1366021]
[1768851780273,0.00366812,3219.6,3218.6,0.1366021]
[1768851780475,0.86202333,3219.5,3218.6,0.1366021]
[1768851780673,0.86202333,3219.4,3218.6,0.1366021]
[1768851780876,0.00366812,3219.6,3218.6,0.1366021]
[1768851781176,0.86202349,3219.5,3218.6,0.1366021]
[1768851781376,0.86202349,3219.4,3218.6,0.1366021]
[1768851781674,0.00366812,3219.6,3218.6,0.1366021]
[1768851781869,0.8620259,3219.5,3218.6,0.1366021]
[1768851782076,0.8620259,3219.4,3218.6,0.1366021]
[1768851782269,0.00366812,3219.6,3218.6,0.1366021]
[1768851782468,0.86202867,3219.5,3218.7,0.13085409]
[1768851782668,0.86202867,3219.4,3218.7,0.13085409]
[1768851782877,0.00366812,3219.6,3218.7,0.13085409]
[1768851783078,0.86202397,3219.5,3218.7,0.13085409]
[1768851783281,0.00366812,3219.6,3218.7,0.13085409]
[1768851783473,0.86199295,3219.5,3218.7,0.13085409]
[1768851783673,0.00366812,3219.6,3218.7,0.13085409]
[1768851783878,0.00366812,3219.6,3218.8,0.13085409]
[1768851793690,4.70358245,3220.4,3218.8,0.13085409]
[1768851793892,1.15249734,3220.3,3218.8,0.13085409]
[1768851794095,0.86094326,3220.2,3218.8,0.13085409]
[1768851794393,0.86094326,3220.1,3218.8,0.13085409]
[1768851794586,0.86094326,3220.0,3218.8,0.13085409]
[1768851794786,0.86094326,3219.9,3218.8,0.13085409]
[1768851794988,1.2877829,3219.8,3218.8,0.13085409]
[1768851798997,1.2877829,3219.8,3218.9,0.13085409]
[1768851799195,1.2877829,3219.8,3218.9,0.13366636]
[1768851800598,1.29103414,3220.0,3218.9,0.13366636]
[1768851802103,1.29103414,3220.0,3219.0,0.13085409]
[1768851802300,0.00325124,3220.0,3219.0,0.13085409]
[1768851802604,0.00325124,3220.0,3219.1,0.13085409]
[1768851802991,0.00325124,3220.0,3219.2,0.13678705]
[1768851816920,1.2877829,3219.9,3219.2,0.13678705]
[1768851819719,0.00325124,3220.0,3219.2,0.13678705]
[1768851819913,1.29103414,3220.0,3219.2,0.13678705]
[1768851836726,0.00325124,3220.0,3219.2,0.13678705]
[1768851842631,1.29103414,3220.0,3219.2,0.13678705]
[1768851846733,0.00325124,3220.0,3219.2,0.13678705]
[1768851866061,9.008e-05,3220.0,3219.2,0.13678705]
[1768851899807,1.67125492,3220.7,3219.3,0.13499458]
[1768851900012,0.86028214,3220.6,3219.3,0.13499458]
[1768851900212,1.28752535,3220.4,3219.3,0.13499458]
[1768851900408,0.86028214,3220.3,3218.9,2.78385324]
[1768851900711,1.28752535,3220.0,3218.9,0.00281227]
[1768851900912,1.28988085,3220.0,3218.9,0.00281227]
[1768851902414,0.0023555,3220.0,3218.9,0.00281227]
[1768851902902,0.0023555,3220.0,3218.9,0.13780685]
[1768851917021,1.82658492,3220.6,3219.1,0.13499458]
[1768851917022,1.28753843,3220.5,3219.1,0.13499458]
[1768851917212,0.86000515,3220.4,3219.1,0.13499458]
[1768851917411,0.86000515,3220.3,3219.1,0.13499458]
[1768851917613,0.86000515,3220.2,3219.1,0.13499458]
[1768851917913,1.28753843,3220.5,3219.1,0.13499458]
[1768851918115,0.85995855,3220.4,3219.1,0.13499458]
[1768851918411,0.85995855,3220.3,3219.1,0.13499458]
[1768851918620,0.85995855,3220.2,3219.1,0.13499458]
[1768851918820,1.28979469,3220.5,3219.1,0.13499458]
[1768851919010,0.85993412,3220.4,3219.1,0.13499458]
[1768851919206,0.85993412,3220.3,3219.1,0.13499458]
[1768851919510,0.85993412,3220.2,3219.1,0.13499458]
[1768851919710,1.28979469,3220.5,3219.1,0.13499458]
[1768851919910,0.85991405,3220.4,3219.1,0.13499458]
[1768851920108,0.85991405,3220.3,3219.1,0.13499458]
[1768851920321,0.85991405,3220.2,3219.1,0.13499458]
[1768851920522,1.28979469,3220.5,3219.1,0.13499458]
[1768851920823,0.85989434,3220.4,3219.1,0.13499458]
[1768851921022,0.85989434,3220.3,3219.1,0.13499458]
[1768851921221,0.85989434,3220.2,3219.1,0.13499458]
[1768851921525,1.28979469,3220.5,3219.1,0.13499458]
[1768851921716,0.85987606,3220.4,3219.1,0.13499458]
[1768851921918,0.85987606,3220.3,3219.1,0.13499458]
[1768851922216,1.28979469,3220.5,3219.1,0.13499458]
[1768851922415,0.85985882,3220.4,3219.1,0.13499458]
[1768851922724,0.85985882,3220.3,3219.1,0.13499458]
[1768851923019,1.28979469,3220.5,3219.2,0.13307707]
[1768851923226,0.85984383,3220.4,3219.2,0.13307707]
[1768851923409,1.28979469,3220.5,3219.2,0.13307707]
[1768851923720,0.85932783,3220.4,3219.3,0.13307707]
[1768851923913,1.28979469,3220.5,3219.3,0.13307707]
[1768851924114,0.85932783,3220.4,3219.3,0.13307707]
[1768851924315,1.28979469,3220.5,3219.3,0.13307707]
[1768851924514,0.85925645,3220.4,3219.3,0.13307707]
[1768851924817,1.28979469,3220.5,3219.3,0.13307707]
[1768851925117,0.85925661,3220.4,3219.3,0.13307707]
[1768851925316,1.28979469,3220.5,3219.3,0.13307707]
[1768851925518,0.85919462,3220.4,3219.3,0.13307707]
[1768851925717,1.28979469,3220.5,3219.3,0.13307707]
[1768851925915,0.85919462,3220.4,3219.3,0.13307707]
[1768851926115,1.28979469,3220.5,3219.3,0.13307707]
[1768851926315,0.85918236,3220.4,3219.3,0.13307707]
[1768851926512,1.28979469,3220.5,3219.3,0.13307707]
[1768851926813,0.85913931,3220.4,3219.3,0.13307707]
[1768851927015,1.28979469,3220.5,3219.3,0.13307707]
[1768851927211,0.85913766,3220.4,3219.3,0.13307707]
[1768851927421,1.28979469,3220.5,3219.3,0.13307707]
[1768851927731,0.00225626,3220.5,3220.1,0.13307707]
[1768851946445,0.00225626,3220.5,3219.8,0.15537]
[1768851946637,0.00225626,3220.5,3219.8,0.28988051]
[1768851953553,0.00225626,3220.5,3219.8,0.13451051]
[1768851960147,1.28753843,3220.3,3219.4,0.13916909]
[1768851960352,1.28753843,3220.1,3219.4,0.13916909]
[1768851961059,1.28753843,3220.3,3219.4,0.13916909]
[1768851961959,1.28753843,3220.1,3219.4,0.13916909]
[1768851962971,1.28753843,3219.9,3219.0,0.13916909]
[1768851966368,0.00225626,3220.5,3218.9,0.00281227]
[1768851966369,1.28753843,3219.5,3218.9,0.00281227]
[1768851967463,0.15534,3220.4,3218.9,0.14198136]
[1768851967654,2.14579997,3220.3,3218.9,0.14198136]
[1768851967859,1.28753843,3220.1,3218.9,0.14198136]
[1768851970276,1.28753843,3219.9,3218.9,0.14198136]
[1768851973174,1.28753843,3220.1,3218.9,0.14198136]
[1768851974281,1.28753843,3220.3,3219.0,0.13916909]